fUSD/lending_fUSD_20240919
["ID","MTS","AMOUNT","RATE_DAILY","PERIOD"]
[338559660,1726733460547,-298.015106,0.00014794,2]
[338559661,1726733460560,-2000.0,0.000148,4]
[338559662,1726733460571,-2000.0,0.000148,5]
[338559663,1726733460581,-1377.86,0.000148,6]
[338559664,1726733460590,-1310.0,0.000148,5]
[338559665,1726733460599,-695.78,0.00014806,2]
[338559666,1726733460609,-500.0,0.00014806,2]
[338559667,1726733460618,-500.0,0.00014806,2]
[338559668,1726733460627,-610.93,0.00014806,2]
[338559669,1726733460637,-500.0,0.00014806,2]
[338559670,1726733460646,-257.23549607,0.00014806,2]
[338559671,1726733460655,-500.0,0.00014806,2]
[338559672,1726733460664,-993.17,0.00014806,2]
[338559673,1726733460674,-500.0,0.00014806,2]
[338559674,1726733460682,-500.0,0.00014806,2]
[338559675,1726733460692,-500.0,0.00014806,2]
[338559676,1726733460701,-509.22,0.00014806,2]
[338559677,1726733460710,-508.45,0.00014806,2]
[338559678,1726733460720,-500.0,0.00014806,2]
[338559679,1726733460729,-500.0,0.00014806,2]
[338559680,1726733460738,-500.0,0.00014806,2]
[338559681,1726733460747,-500.0,0.00014806,2]
[338559682,1726733460756,-500.0,0.00014806,2]
[338559683,1726733460766,-500.0,0.00014806,2]
[338559684,1726733460775,-555.56,0.00014806,2]
[338559685,1726733460785,-526.09721468,0.00014806,2]
[338559686,1726733460795,-500.0,0.00014806,2]
[338559687,1726733460812,-500.0,0.00014806,2]
[338559688,1726733460821,-500.0,0.00014806,2]
[338559689,1726733460830,-500.0,0.00014806,2]
[338559690,1726733460839,-513.77,0.00014806,2]
[338559691,1726733460849,-500.0,0.00014806,2]
[338559692,1726733460858,-500.0,0.00014806,2]
[338559693,1726733460867,-500.0,0.00014806,2]
[338559694,1726733460876,-536.2,0.00014806,2]
[338559695,1726733460886,-500.0,0.00014806,2]
[338559696,1726733460895,-500.0,0.00014806,2]
[338559697,1726733460904,-500.0,0.00014806,2]
[338559698,1726733460914,-500.0,0.00014806,2]
[338559699,1726733460924,-642.0,0.00014806,2]
[338559700,1726733460933,-500.0,0.00014806,2]
[338559701,1726733460943,-878.46,0.00014806,2]
[338559702,1726733460952,-500.0,0.00014806,2]
[338559703,1726733460961,-530.70787889,0.00014806,2]
[338559704,1726733460970,-500.0,0.00014806,2]
[338559705,1726733460980,-500.0,0.00014806,2]
[338559706,1726733460990,-500.0,0.00014806,2]
[338559707,1726733460999,-500.0,0.00014806,2]
[338559708,1726733461008,-512.2,0.00014806,2]
[338559709,1726733461017,-738.29,0.00014806,2]
[338559710,1726733461026,-954.14,0.00014806,2]
[338559711,1726733461036,-500.0,0.00014806,2]
[338559712,1726733461046,-500.0,0.00014806,2]
[338559713,1726733461056,-500.0,0.00014806,2]
[338559714,1726733461065,-500.0,0.00014806,2]
[338559715,1726733461074,-897.37,0.00014806,2]
[338559716,1726733461084,-500.0,0.00014806,2]
[338559717,1726733461094,-500.0,0.00014806,2]
[338559718,1726733461105,-500.0,0.00014806,2]
[338559719,1726733461114,-695.2,0.00014806,2]
[338559720,1726733461123,-522.46,0.00014806,2]
[338559721,1726733461133,-500.0,0.00014806,2]
[338559722,1726733461142,-868.83,0.00014806,2]
[338559723,1726733461151,-500.0,0.00014806,2]
[338559724,1726733461161,-500.0,0.00014806,2]
[338559725,1726733461170,-500.0,0.00014806,2]
[338559726,1726733461182,-1326.93,0.00014806,2]
[338559727,1726733461191,-674.02,0.00014806,2]
[338559728,1726733461200,-500.0,0.00014806,2]
[338559729,1726733461210,-500.0,0.00014806,2]
[338559730,1726733461219,-500.0,0.00014806,2]
[338559731,1726733461229,-500.0,0.00014806,2]
[338559732,1726733461239,-1881.36,0.00014806,2]
[338559733,1726733461248,-500.0,0.00014806,2]
[338559734,1726733461257,-500.0,0.00014806,2]
[338559735,1726733461266,-627.83,0.00014806,2]
[338559736,1726733461276,-500.0,0.00014806,2]
[338559737,1726733461286,-525.93,0.00014806,2]
[338559738,1726733461295,-507.37,0.00014806,2]
[338559739,1726733461304,-500.0,0.00014806,2]
[338559740,1726733461313,-500.0,0.00014806,2]
[338559741,1726733461324,-537.85,0.00014806,2]
[338559742,1726733461333,-500.0,0.00014806,2]
[338559743,1726733461342,-706.39,0.00014806,2]
[338559744,1726733461353,-500.0,0.00014806,2]
[338559745,1726733461366,-700.0,0.00014806,2]
[338559746,1726733461376,-500.0,0.00014806,2]
[338559747,1726733461385,-1720.07,0.00014806,2]
[338559748,1726733461395,-500.0,0.00014806,2]
[338559749,1726733461405,-616.49,0.00014806,2]
[338559750,1726733461414,-906.75,0.00014806,2]
[338559751,1726733461424,-500.0,0.00014806,2]
[338559752,1726733461435,-500.0,0.00014806,2]
[338559753,1726733461446,-642.85,0.00014806,2]
[338559754,1726733461457,-500.0,0.00014806,2]
[338559755,1726733461466,-282.65594076,0.00014807,2]
[338559756,1726733461477,-500.0,0.00014807,2]
[338559757,1726733461486,-500.0,0.00014807,2]
[338559758,1726733461496,-500.0,0.00014807,2]
[338559759,1726733461505,-500.0,0.00014807,2]
[338559760,1726733461515,-6015.27259667,0.00014834,2]
[338559761,1726733461525,-151.99806496,0.00014849,2]
[338559762,1726733461534,-5800.0,0.00014891,2]
[338559763,1726733461545,-4270.66554214,0.000149,7]
[338559764,1726733461554,-2000.0,0.000149,2]
[338559765,1726733461563,-2000.0,0.000149,2]
[338559766,1726733461573,-2304.76074558,0.000149,2]
[338559767,1726733461582,-5800.0,0.000149,2]
[338559768,1726733461592,-159.53480383,0.000149,2]
[338559769,1726733461602,-169.53591188,0.000149,2]
[338559770,1726733461611,-1805.84011571,0.000149,2]
[338559771,1726733461621,-1487.37483026,0.000149,2]
[338559772,1726733461631,-468.1766441,0.000149,2]
[338559773,1726733461640,-206.0,0.0001495,2]
[338559774,1726733461649,-201.0,0.0001496,2]
[338559775,1726733461659,-8644.309044,0.0001497,2]
[338559776,1726733461669,-5000.0,0.0001497,2]
[338559777,1726733461678,-5000.0,0.0001497,2]
[338559778,1726733461687,-5000.0,0.0001497,2]
[338559779,1726733461697,-880.53,0.00014979,2]
[338559780,1726733461706,-268.56848273,0.00014979,2]
[338559781,1726733461715,-500.0,0.00014979,2]
[338559782,1726733461725,-500.0,0.00014979,2]
[338559783,1726733461734,-500.0,0.00014979,2]
[338559784,1726733461744,-500.0,0.00014979,2]
[338559785,1726733461753,-1038.92,0.00014979,2]
[338559786,1726733461763,-515.94,0.00014979,2]
[338559787,1726733461773,-500.0,0.00014979,2]
[338559788,1726733461783,-500.0,0.00014979,2]
[338559789,1726733461793,-500.0,0.00014979,2]
[338559790,1726733461802,-972.03,0.00014979,2]
[338559791,1726733461812,-2893.75,0.00014979,2]
[338559792,1726733461822,-991.73,0.00014979,2]
[338559793,1726733461832,-547.9,0.00014979,2]
[338559794,1726733461842,-500.0,0.00014979,2]
[338559795,1726733461851,-500.0,0.00014979,2]
[338559796,1726733461861,-500.0,0.00014979,2]
[338559797,1726733461871,-4265.64,0.00014979,2]
[338559798,1726733461881,-596.86,0.00014979,2]
[338559799,1726733461891,-468.00059748,0.00014979,2]
[338559800,1726733461900,-993.18,0.00014979,2]
[338559801,1726733461911,-13243.4,0.00014979,2]
[338559802,1726733461921,-873.67,0.00014979,2]
[338559803,1726733461931,-1065.45,0.00014979,2]
[338559804,1726733461941,-2360.59,0.00014979,2]
[338559805,1726733461951,-1313.44,0.00014979,2]
[338559806,1726733461960,-1584.91,0.00014979,2]
[338559807,1726733461970,-500.0,0.00014979,2]
[338559808,1726733461981,-1243.35,0.00014979,2]
[338559809,1726733461990,-1457.82,0.00014979,2]
[338559810,1726733462000,-500.0,0.00014979,2]
[338559811,1726733462010,-500.0,0.00014979,2]
[338559812,1726733462020,-952.05,0.00014979,2]
[338559813,1726733462030,-500.87,0.00014979,2]
[338559814,1726733462040,-733.48,0.00014979,2]
[338559815,1726733462050,-863.21,0.00014979,2]
[338559816,1726733462059,-1269.16,0.00014979,2]
[338559817,1726733462069,-589.4,0.00014979,2]
[338559818,1726733462079,-1061.98,0.00014979,2]
[338559819,1726733462088,-1055.46,0.00014979,2]
[338559820,1726733462098,-500.0,0.00014979,2]
[338559821,1726733462107,-2844.65,0.00014979,2]
[338559822,1726733462117,-500.0,0.00014979,2]
[338559823,1726733462126,-593.82,0.00014979,2]
[338559824,1726733462136,-680.98,0.00014979,2]
[338559825,1726733462146,-1168.28,0.00014979,2]
[338559826,1726733462156,-1783.74,0.00014979,2]
[338559827,1726733462166,-878.88,0.00014979,2]
[338559828,1726733462175,-675.46,0.00014979,2]
[338559829,1726733462185,-500.0,0.00014979,2]
[338559830,1726733462195,-781.22,0.00014979,2]
[338559831,1726733462206,-917.57,0.00014979,2]
[338559832,1726733462215,-500.0,0.00014979,2]
[338559833,1726733462225,-500.0,0.00014979,2]
[338559834,1726733462235,-1397.75,0.00014979,2]
[338559835,1726733462245,-791.33,0.00014979,2]
[338559836,1726733462255,-789.01,0.00014979,2]
[338559837,1726733462264,-500.0,0.00014979,2]
[338559838,1726733462274,-551.28,0.00014979,2]
[338559839,1726733462283,-1065.78,0.00014979,2]
[338559840,1726733462293,-500.0,0.00014979,2]
[338559841,1726733462303,-852.97,0.00014979,2]
[338559842,1726733462312,-539.84,0.00014979,2]
[338559843,1726733462323,-500.0,0.00014979,2]
[338559844,1726733462333,-500.0,0.00014979,2]
[338559845,1726733462343,-714.42,0.00014979,2]
[338559846,1726733462353,-507.87,0.0001498,2]
[338559847,1726733462367,-500.0,0.0001498,2]
[338559848,1726733462376,-500.0,0.0001498,2]
[338559849,1726733462387,-500.0,0.0001498,2]
[338559850,1726733462398,-500.0,0.0001498,2]
[338559851,1726733462409,-269.57056655,0.0001498,2]
[338559852,1726733462419,-500.0,0.0001498,2]
[338559853,1726733462429,-500.0,0.0001498,2]
[338559854,1726733462439,-500.0,0.0001498,2]
[338559855,1726733462449,-500.0,0.0001498,2]
[338559856,1726733462459,-546.58,0.0001498,2]
[338559857,1726733462468,-500.0,0.0001498,2]
[338559858,1726733462477,-500.0,0.0001498,2]
[338559859,1726733462486,-500.0,0.0001498,2]
[338559860,1726733462496,-500.0,0.0001498,2]
[338559861,1726733462506,-500.0,0.0001498,2]
[338559862,1726733462515,-500.0,0.0001498,2]
[338559863,1726733462525,-500.0,0.0001498,2]
[338559864,1726733462535,-500.0,0.0001498,2]
[338559865,1726733462544,-727.21,0.0001498,2]
[338559866,1726733462553,-500.0,0.0001498,2]
[338559867,1726733462563,-543.96,0.0001498,2]
[338559868,1726733462573,-500.0,0.0001498,2]
[338559869,1726733462582,-505.64,0.0001498,2]
[338559870,1726733462591,-500.0,0.0001498,2]
[338559871,1726733462602,-642.39,0.0001498,2]
[338559872,1726733462611,-500.0,0.0001498,2]
[338559873,1726733462620,-500.0,0.0001498,2]
[338559874,1726733462629,-609.45,0.0001498,2]
[338559875,1726733462638,-612.72,0.0001498,2]
[338559876,1726733462648,-500.0,0.0001498,2]
[338559877,1726733462657,-500.0,0.0001498,2]
[338559878,1726733462666,-500.0,0.0001498,2]
[338559879,1726733462675,-500.0,0.0001498,2]
[338559880,1726733462685,-500.0,0.0001498,2]
[338559881,1726733462695,-682.86,0.0001498,2]
[338559882,1726733462704,-734.94,0.0001498,2]
[338559883,1726733462713,-500.0,0.0001498,2]
[338559884,1726733462722,-500.0,0.0001498,2]
[338559885,1726733462731,-587.74,0.0001498,2]
[338559886,1726733462741,-500.0,0.0001498,2]
[338559887,1726733462751,-500.0,0.0001498,2]
[338559888,1726733462760,-721.59,0.0001498,2]
[338559889,1726733462769,-500.0,0.0001498,2]
[338559890,1726733462778,-500.0,0.0001498,2]
[338559891,1726733462788,-500.0,0.0001498,2]
[338559892,1726733462797,-500.0,0.0001498,2]
[338559893,1726733462821,-500.0,0.0001498,2]
[338559894,1726733462831,-500.0,0.0001498,2]
[338559895,1726733462840,-500.0,0.0001498,2]
[338559896,1726733462850,-500.0,0.0001498,2]
[338559897,1726733462859,-500.0,0.0001498,2]
[338559898,1726733462869,-636.81,0.0001498,2]
[338559899,1726733462878,-500.0,0.0001498,2]
[338559900,1726733462887,-500.0,0.0001498,2]
[338559901,1726733462897,-1075.05,0.0001498,2]
[338559902,1726733462907,-500.0,0.0001498,2]
[338559903,1726733462916,-500.0,0.0001498,2]
[338559904,1726733462925,-500.0,0.0001498,2]
[338559905,1726733462934,-500.0,0.0001498,2]
[338559906,1726733462943,-500.0,0.0001498,2]
[338559907,1726733462952,-500.0,0.0001498,2]
[338559908,1726733462961,-549.87,0.0001498,2]
[338559909,1726733462971,-500.0,0.0001498,2]
[338559910,1726733462980,-500.0,0.0001498,2]
[338559911,1726733462989,-500.0,0.0001498,2]
[338559912,1726733462998,-500.0,0.0001498,2]
[338559913,1726733463007,-500.0,0.0001498,2]
[338559914,1726733463016,-500.0,0.0001498,2]
[338559915,1726733463026,-500.0,0.0001498,2]
[338559916,1726733463035,-500.0,0.0001498,2]
[338559917,1726733463045,-500.0,0.0001498,2]
[338559918,1726733463053,-500.0,0.0001498,2]
[338559919,1726733463063,-500.0,0.0001498,2]
[338559920,1726733463072,-500.0,0.0001498,2]
[338559921,1726733463081,-610.57174525,0.0001498,2]
[338559922,1726733463091,-500.0,0.0001498,2]
[338559923,1726733463101,-500.0,0.0001498,2]
[338559924,1726733463110,-500.0,0.0001498,2]
[338559925,1726733463120,-643.52,0.0001498,2]
[338559926,1726733463129,-500.0,0.0001498,2]
[338559927,1726733463138,-672.58,0.0001498,2]
[338559928,1726733463147,-500.0,0.0001498,2]
[338559929,1726733463157,-500.0,0.0001498,2]
[338559930,1726733463166,-783.51,0.0001498,2]
[338559931,1726733463176,-500.0,0.0001498,2]
[338559932,1726733463186,-500.0,0.0001498,2]
[338559933,1726733463195,-745.05,0.0001498,2]
[338559934,1726733463205,-614.51,0.0001498,2]
[338559935,1726733463215,-943.71,0.0001498,2]
[338559936,1726733463225,-500.0,0.0001498,2]
[338559937,1726733463235,-1209.81,0.0001498,2]
[338559938,1726733463244,-528.89,0.0001498,2]
[338559939,1726733463254,-500.0,0.0001498,2]
[338559940,1726733463263,-500.0,0.0001498,2]
[338559941,1726733463272,-641.28,0.0001498,2]
[338559942,1726733463281,-500.0,0.0001498,2]
[338559943,1726733463291,-500.0,0.0001498,2]
[338559944,1726733463301,-849.17,0.0001498,2]
[338559945,1726733463310,-605.27,0.0001498,2]
[338559946,1726733463320,-151.99806496,0.00014986,2]
[338559947,1726733463329,-518152.92981285,0.0001499,3]
[338559948,1726733463670,-432686.17147036,0.0001499,3]
[338559949,1726733463682,-377429.56656218,0.0001499,3]
[338559950,1726733463691,-153.825284,0.0001499,2]
[338559951,1726733463702,-2006.9078249,0.0001499,2]
[338559952,1726733463712,-7427.9956475,0.0001499,2]
[338559953,1726733463722,-6751.7437815,0.0001499,2]
[338559954,1726733463732,-6075.4919156,0.0001499,2]
[338559955,1726733463741,-5399.2400496,0.0001499,2]
[338559956,1726733463751,-4722.9881837,0.0001499,2]
[338559957,1726733463760,-474.777697,0.0001499,2]
[338559958,1726733463770,-10978.454681,0.0001499,2]
[338559959,1726733463780,-12178.6321459,0.0001499,2]
[338559960,1726733463790,-13378.8096108,0.0001499,2]
[338559961,1726733463799,-14578.9870758,0.0001499,2]
[338559962,1726733463809,-15779.1645407,0.0001499,2]
[338559963,1726733463819,-66506.3208754,0.0001499,2]
[338559964,1726733463829,-68741.8274594,0.0001499,2]
[338559965,1726733463838,-70977.3340434,0.0001499,2]
[338559966,1726733463848,-73212.8406275,0.0001499,2]
[338559967,1726733463858,-75448.3472115,0.0001499,2]
[338559968,1726733463867,-152.0,0.00014992,4]
[338559969,1726733463878,-2271.20676673,0.00014999,2]
[338559970,1726733463888,-294.41895783,0.00014999,2]
[338559971,1726733463897,-150.0,0.00014999,2]
[338559972,1726733463906,-150.0031261,0.00014999,3]
[338559973,1726733463917,-988785.00288744,0.00015,2]
[338559974,1726733463926,-556810.68810224,0.00015,2]
[338559975,1726733463936,-150.19371611,0.00015,10]
[338559976,1726733463946,-1189046.04145334,0.00015,2]
[338559977,1726733463957,-655.6964493,0.00015,2]
[338559978,1726733463974,-500.0,0.00013335,2]
[338559979,1726733463986,-4541.6,0.00015,2]
[338559980,1726733463998,-717.96206054,0.00015,2]
[338559981,1726733464014,-3500.0,0.00015,2]
[338559982,1726733464255,-500.0,0.00013392,2]
[338559983,1726733464275,-522.00068962,0.00013392,2]
[338559984,1726733465942,-931.13278959,0.00013392,2]
[338559985,1726733466336,-9201.07456294,0.00013392,2]
[338559986,1726733466346,-500.0,0.00013609,2]
[338559987,1726733466357,-500.0,0.00013883,2]
[338559988,1726733466367,-500.0,0.00014157,2]
[338559989,1726733466381,-500.0,0.00014431,2]
[338559990,1726733466390,-500.0,0.00014705,2]
[338559991,1726733466402,-500.0,0.00014979,2]
[338559992,1726733466411,-12655.23438356,0.00015,2]
[338559993,1726733466424,-54431.12109084,0.00015,2]
[338559994,1726733466434,-810984.005133,0.00015,2]
[338559995,1726733466445,-715.36994382,0.00015,2]
[338559996,1726733466704,-474.70594152,0.00013607,2]
[338559997,1726733466715,-10679.50210063,0.00013607,2]
[338559998,1726733466725,-213.649964,0.000145,2]
[338559999,1726733466734,-213.649964,0.000146,2]
[338560000,1726733466744,-10908.41739483,0.00015,2]
[338560001,1726733466755,-29900.94388131,0.00015,2]
[338560002,1726733466767,-1740.74654837,0.00015,2]
[338560003,1726733466778,-4395.16001711,0.00015,2]
[338560004,1726733466792,-7533.79919372,0.00015,2]
[338560005,1726733466804,-609.53823585,0.00015,2]
[338560006,1726733466817,-3666.82998998,0.00015,2]
[338560007,1726733466829,-62296.9681804,0.00015,2]
[338560008,1726733466841,-458.27649239,0.00015,2]
[338560009,1726733466852,-11753.76194839,0.00015,2]
[338560010,1726733466864,-900.0,0.00015,2]
[338560011,1726733466875,-5143.26,0.00015,2]
[338560012,1726733466886,-1580.85761632,0.00015,2]
[338560013,1726733466898,-1421.4756318,0.00015,2]
[338560014,1726733466909,-290165.98757999,0.00015,2]
[338560015,1726733466919,-321308.13765123,0.00015,2]
[338560016,1726733466930,-553.56974129,0.00015,2]
[338560017,1726733466941,-2453.47,0.00015,2]
[338560018,1726733466953,-22020.08085113,0.00015,2]
[338560019,1726733466966,-277.12384596,0.00015,2]
[338560020,1726733466978,-1295.87497203,0.00015,2]
[338560021,1726733466990,-8924.9356803,0.00015,2]
[338560022,1726733467011,-500.0,0.00013162,2]
[338560023,1726733467022,-213.649964,0.0001499,2]
[338560024,1726733467032,-1724.88568519,0.00015,2]
[338560025,1726733467049,-1000.54103258,0.00015,2]
[338560026,1726733467068,-1790.35605016,0.00015,2]
[338560027,1726733467080,-430.18684934,0.00015,2]
[338560028,1726733467093,-506.28464956,0.00015,2]
[338560029,1726733467105,-12135.87654505,0.00015,2]
[338560030,1726733467117,-2227.32105604,0.00015,2]
[338560031,1726733492702,600.0,0.00010168,2]
[338560032,1726733494535,600.0,0.00011538,2]
[338560033,1726733494734,654.21,0.00013918,30]
[338560034,1726733520313,157.73,0.00010959,2]
[338560035,1726733582562,3345.97167764,0.00012688,2]
[338560036,1726733582999,438.53,0.00010934,2]
[338560037,1726733680351,250.0,0.00012739,2]
[338560038,1726733727165,180.49953026,0.00012688,2]
[338560039,1726733795937,476.64,0.00012729,2]
[338560040,1726733812807,1050.0,0.00011,2]
[338560041,1726733872406,730.24,0.00012622,2]
[338560042,1726733906855,250.0,0.00012542,2]
[338560043,1726733974842,159.33,0.00012545,2]
[338560044,1726733975887,23900.0,0.00012545,2]
[338560045,1726734041495,200.0,0.00012571,2]
[338560046,1726734057280,250.0,0.00012592,2]
[338560047,1726734072623,2000.0,0.00012592,2]
[338560048,1726734098470,1703.55,0.00012653,2]
[338560049,1726734173150,621.49,0.00013918,30]
[338560050,1726734180390,416.6,0.00010739,2]
[338560051,1726734199420,250.0,0.00012619,2]
[338560052,1726734226007,831.25,0.00012619,2]
[338560053,1726734329467,28299.3140405,0.000101,2]
[338560059,1726734413964,415.8,0.00012604,2]
[338560067,1726734512928,159.33,0.00012516,2]
[338560088,1726734591602,851.77,0.00012549,2]
[338560091,1726734620735,156.95,0.00010959,2]
[338560092,1726734630767,937.97,0.00012475,2]
[338560094,1726734632249,-168.09,0.00012809,2]
[338560095,1726734632259,-3326.67952503,0.00012903,2]
[338560096,1726734632271,-622.0,0.00012903,2]
[338560098,1726734632303,-1517.42729465,0.00012903,2]
[338560100,1726734632315,-860.06877526,0.00012903,2]
[338560103,1726734632327,-366.34923035,0.00012903,2]
[338560105,1726734632336,-540.02017798,0.00012908,2]
[338560106,1726734632348,-59.97982202,0.00012908,2]
[338560107,1726734632358,-151.64,0.0001299,2]
[338560108,1726734632367,-150.0,0.00012998,2]
[338560109,1726734632376,-1056.61,0.00012999,2]
[338560110,1726734632387,-500.0,0.00012999,2]
[338560111,1726734632397,-500.0,0.00012999,2]
[338560112,1726734632407,-375.89599549,0.00012999,2]
[338560113,1726734632416,-634.7,0.00012999,2]
[338560114,1726734632426,-375.58892501,0.00012999,2]
[338560115,1726734632451,-453.31107499,0.00012999,2]
[338560116,1726734632460,-500.0,0.00012999,2]
[338560117,1726734632470,-500.0,0.00012999,2]
[338560118,1726734632480,-703.64,0.00012999,2]
[338560120,1726734632489,-846.11,0.00012999,2]
[338560121,1726734632499,-152.90604829,0.00012999,2]
[338560122,1726734632510,-555.08395171,0.00012999,2]
[338560123,1726734632520,-500.0,0.00012999,2]
[338560124,1726734632530,-778.86,0.00012999,2]
[338560125,1726734632540,-1134.16604829,0.00012999,2]
[338560126,1726734632553,-762.26395171,0.00012999,2]
[338560127,1726734632562,-520.81,0.00012999,2]
[338560128,1726734632572,-1189.16,0.00012999,2]
[338560129,1726734632581,-500.0,0.00012999,2]
[338560130,1726734632590,-500.0,0.00012999,2]
[338560131,1726734632599,-500.0,0.00012999,2]
[338560132,1726734632609,-500.0,0.00012999,2]
[338560133,1726734632619,-500.0,0.00012999,2]
[338560134,1726734632628,-500.0,0.00012999,2]
[338560135,1726734632639,-500.0,0.00012999,2]
[338560137,1726734632648,-1929.17,0.00012999,2]
[338560138,1726734632658,-568.65,0.00012999,2]
[338560139,1726734632667,-526.01,0.00012999,2]
[338560141,1726734632677,-10211.48159152,0.00013,2]
[338560143,1726734632688,-708.14,0.00013,2]
[338560145,1726734632700,-1075.9549519,0.00013,2]
[338560147,1726734632711,-1106.02,0.00013,2]
[338560148,1726734632975,-1602.76914189,0.00013,2]
[338560149,1726734632988,-1879.8522855,0.00013,2]
[338560150,1726734632999,-5644.64864698,0.00013,2]
[338560151,1726734633011,-268.07010932,0.00013,2]
[338560152,1726734633027,-1378.29577402,0.00013,2]
[338560153,1726734633039,-277.50880542,0.00013,2]
[338560154,1726734633050,-939.82724979,0.00013,2]
[338560155,1726734633062,-969.32860536,0.00013,2]
[338560156,1726734633074,-439.35,0.00013,2]
[338560157,1726734633085,-476.31863171,0.00013,2]
[338560158,1726734633097,-1382.78807392,0.00013,2]
[338560160,1726734638416,-500.0,0.00012999,2]
[338560161,1726734638425,-82.24356216,0.00012999,2]
[338560162,1726734638471,-342.12081355,0.00012999,2]
[338560163,1726734638480,-2168.59918645,0.00013,2]
[338560164,1726734638493,-8752.22233078,0.00013,2]
[338560165,1726734638528,-583.44794261,0.00013,2]
[338560166,1726734638539,-698.46349581,0.00013,2]
[338560167,1726734638688,-3044.69693115,0.00013,2]
[338560168,1726734638700,-66099.04057225,0.00013,2]
[338560169,1726734638711,-351.92,0.00013,2]
[338560170,1726734638746,-297.97689013,0.00013,2]
[338560176,1726734640291,-500.0,0.00012999,2]
[338560177,1726734640302,-500.0,0.00012999,2]
[338560178,1726734640312,-29132.31558998,0.00013,2]
[338560179,1726734640346,-1610.53421101,0.00013,2]
[338560180,1726734640409,-706.04,0.00013,2]
[338560181,1726734640424,-3048.32772882,0.00013,2]
[338560182,1726734640460,-397.63098387,0.00013,2]
[338560183,1726734640472,-4832.22556236,0.00013,2]
[338560184,1726734640484,-9920.5,0.00013,2]
[338560185,1726734640569,-86163.18088201,0.00013,2]
[338560187,1726734642011,-350.09117069,0.00013,2]
[338560281,1726734643289,-12175.6,0.00013,2]
[338560283,1726734643301,-5557.37127244,0.00013,2]
[338560285,1726734643312,-2833.13889606,0.00013,2]
[338560287,1726734643346,-1310.89655929,0.00013,2]
[338560288,1726734643405,-335.37593668,0.00013,2]
[338560289,1726734643417,-432.0,0.00013,2]
[338560290,1726734643461,-326.59999975,0.00013,2]
[338560291,1726734643472,-530.95163184,0.00013,2]
[338560292,1726734643484,-297.95376087,0.00013,2]
[338560293,1726734643495,-293.30521316,0.00013,2]
[338560322,1726734643970,-10003.93457314,0.00013,2]
[338560325,1726734643985,-659.52544,0.00013,2]
[338560327,1726734643997,-303679.95097855,0.00013,2]
[338560329,1726734644006,-145640.12018928,0.00013,2]
[338560331,1726734644019,-1091.63034872,0.00013,2]
[338560334,1726734644030,-735.915,0.00013,2]
[338560336,1726734644041,-1448.13210903,0.00013,2]
[338560339,1726734644061,-19225.41725305,0.00013,2]
[338560398,1726734646236,-62003.14113327,0.00013,2]
[338560399,1726734646291,-748.82902201,0.00013,2]
[338560400,1726734646303,-275.5687984,0.00013,2]
[338560401,1726734646315,-27526.82046743,0.00013,2]
[338560402,1726734646349,-2210.14193587,0.00013,2]
[338560403,1726734646362,-302.36477559,0.00013,2]
[338560404,1726734646372,-416.6,0.00013003,2]